bitfinex/quotes_BTCUSD_20251205
["timestamp","ask_amount","ask_price","bid_price","bid_amount"]
[1764942010484,0.05690885,90675.0,90674.0,0.23159619]
[1764942010709,0.45179885,90675.0,90674.0,0.23159619]
[1764942011234,0.37990885,90675.0,90674.0,0.23159619]
[1764942011441,0.40034885,90675.0,90674.0,0.23159619]
[1764942011616,0.40034885,90675.0,90674.0,0.23275134]
[1764942011851,0.35367049,90675.0,90674.0,0.23275134]
[1764942012199,0.34352,90675.0,90674.0,0.23275134]
[1764942012494,0.34252,90675.0,90674.0,0.23275134]
[1764942012710,0.34352,90675.0,90674.0,0.23275134]
[1764942013121,0.34552,90675.0,90674.0,0.23275134]
[1764942013761,0.36596,90675.0,90674.0,0.23275134]
[1764942013970,0.36296,90675.0,90674.0,0.23275134]
[1764942014195,0.36296,90675.0,90674.0,0.01218366]
[1764942014388,0.42625181,90675.0,90674.0,0.01218366]
[1764942014582,1.18065877,90675.0,90674.0,0.00115515]
[1764942014781,1.22154797,90675.0,90674.0,0.00115515]
[1764942015158,1.22654797,90675.0,90674.0,0.00115515]
[1764942015369,0.84238901,90675.0,90674.0,0.00115515]
[1764942015573,0.83938901,90675.0,90674.0,0.00115515]
[1764942015774,0.84138901,90675.0,90674.0,0.00115515]
[1764942015936,0.84438901,90675.0,90674.0,0.00115515]
[1764942016538,0.78485901,90675.0,90674.0,0.00115515]
[1764942016751,1.00542697,90675.0,90674.0,0.00115515]
[1764942016990,0.78485901,90675.0,90674.0,0.22172554]
[1764942017205,0.38188277,90675.0,90674.0,0.22172554]
[1764942017405,0.35567357,90675.0,90674.0,0.22172554]
[1764942017665,0.45712357,90675.0,90674.0,0.22172554]
[1764942017857,0.43960357,90675.0,90674.0,0.22172554]
[1764942018037,0.50650713,90675.0,90674.0,0.00115515]
[1764942018235,0.56112184,90675.0,90674.0,0.00115515]
[1764942018439,0.52214277,90675.0,90674.0,0.00115515]
[1764942018760,1.7241298,90675.0,90674.0,0.00115515]
[1764942019186,1.8140457,90675.0,90674.0,0.00115515]
[1764942020144,1.77506663,90675.0,90674.0,0.00115515]
[1764942020748,1.77519085,90675.0,90674.0,0.00115515]
[1764942020913,1.77519085,90675.0,90663.0,0.11145868]
[1764942020914,0.39655248,90666.0,90663.0,0.11145868]
[1764942021113,2.64765771,90664.0,90663.0,0.11145868]
[1764942021365,2.68122468,90664.0,90663.0,0.11145868]
[1764942021522,2.76580889,90664.0,90663.0,0.11145868]
[1764942021721,2.78332889,90664.0,90663.0,0.11145868]
[1764942022134,2.78332889,90664.0,90663.0,0.11157815]
[1764942022334,2.86134935,90664.0,90663.0,0.11157815]
[1764942022775,2.78332889,90664.0,90663.0,0.11157815]
[1764942022963,2.79032889,90664.0,90663.0,0.11157815]
[1764942023165,2.77280889,90664.0,90663.0,0.11157815]
[1764942023374,0.05750697,90664.0,90663.0,0.11157815]
[1764942023569,0.03167355,90664.0,90663.0,0.11319102]
[1764942023723,0.02152,90664.0,90663.0,0.11319102]
[1764942023921,0.004,90664.0,90663.0,0.11319102]
[1764942024136,0.004,90664.0,90663.0,0.35785983]
[1764942024375,0.01752,90664.0,90663.0,0.35724263]
[1764942024690,0.05,90675.0,90674.0,0.22057039]
[1764942024894,0.06752,90675.0,90674.0,0.22057039]
[1764942025093,0.05,90675.0,90674.0,0.22057039]
[1764942025265,0.06752,90675.0,90674.0,0.22057039]
[1764942025466,0.06752,90675.0,90674.0,0.22218326]
[1764942025806,0.08796,90675.0,90674.0,0.22218326]
[1764942025969,0.323,90674.0,90672.0,0.23160394]
[1764942026168,0.04733,90673.0,90672.0,0.23160394]
[1764942026337,0.06893,90673.0,90672.0,0.23160394]
[1764942026538,0.04733,90673.0,90672.0,0.23160394]
[1764942026779,0.06893,90673.0,90672.0,0.23160394]
[1764942027021,0.07186,90673.0,90669.0,0.01102912]
[1764942027219,0.35562851,90674.0,90664.0,0.22059381]
[1764942027220,0.323,90666.0,90664.0,0.22059381]
[1764942027393,0.323,90666.0,90663.0,0.11157815]
[1764942027394,0.323,90664.0,90663.0,0.11157815]
[1764942027615,0.42020933,90664.0,90663.0,0.11157815]
[1764942027848,0.323,90664.0,90663.0,0.11157815]
[1764942028187,0.34052,90664.0,90663.0,0.11319102]
[1764942028394,0.06485,90664.0,90663.0,0.11319102]
[1764942028605,0.09138,90664.0,90663.0,0.11157815]
[1764942028813,0.43598,90664.0,90663.0,0.11157815]
[1764942029024,0.45939342,90664.0,90663.0,0.11157815]
[1764942029237,1.33562641,90664.0,90663.0,0.11157815]
[1764942029446,1.36937305,90664.0,90663.0,0.11257815]
[1764942029656,1.36737305,90664.0,90663.0,0.11157815]
[1764942029873,1.39659337,90664.0,90663.0,0.11157815]
[1764942030049,1.40159337,90664.0,90663.0,0.11157815]
[1764942030364,1.39459337,90664.0,90663.0,0.11157815]
[1764942030584,1.36837305,90664.0,90663.0,0.11157815]
[1764942030999,1.42681965,90664.0,90663.0,0.11157815]
[1764942031172,1.42681965,90664.0,90663.0,0.0784767]
[1764942031173,1.44879934,90664.0,90663.0,0.0784767]
[1764942031406,1.48593743,90664.0,90663.0,0.04537525]
[1764942031553,1.49193743,90664.0,90663.0,0.0122738]
[1764942031738,1.48593743,90664.0,90663.0,0.0122738]
[1764942031945,1.48193743,90664.0,90663.0,0.0122738]
[1764942032165,1.49393743,90664.0,90663.0,0.0122738]
[1764942032513,2.30472987,90659.0,90658.0,9e-05]
[1764942032712,2.36281993,90659.0,90658.0,0.00048862]
[1764942032916,2.42743993,90659.0,90658.0,0.00048862]
[1764942033118,2.40991993,90659.0,90658.0,0.00048862]
[1764942033336,2.42743993,90659.0,90658.0,0.00048862]
[1764942033746,2.40991993,90659.0,90658.0,0.00048862]
[1764942033945,2.43272993,90659.0,90658.0,0.00048862]
[1764942034144,2.73412993,90659.0,90658.0,0.00048862]
[1764942034305,2.77323687,90659.0,90658.0,0.00048862]
[1764942034511,2.77723687,90659.0,90658.0,0.00048862]
[1764942034738,2.77723687,90659.0,90620.0,0.0425]
[1764942034739,2.54362635,90651.0,90641.0,0.04154066]
[1764942034941,2.03557933,90642.0,90641.0,0.04154066]
[1764942035138,1.08656425,90642.0,90641.0,0.04154066]
[1764942035344,0.66858041,90642.0,90641.0,0.04154066]
[1764942035752,0.6764795,90642.0,90641.0,0.04154066]
[1764942035967,0.67871283,90642.0,90641.0,0.04154066]
[1764942036576,0.66119283,90642.0,90641.0,0.04154066]
[1764942036779,0.70610574,90642.0,90641.0,0.04154066]
[1764942037189,0.70610574,90642.0,90641.0,0.01204157]
[1764942037561,0.70610574,90642.0,90637.0,0.1]
[1764942037562,2.40712299,90638.0,90637.0,0.1]
[1764942037771,2.44066883,90638.0,90637.0,0.1]
[1764942037982,2.45818883,90638.0,90637.0,0.1010966]
[1764942038414,1.02282783,90638.0,90637.0,0.1010966]
[1764942038620,0.95495083,90638.0,90637.0,0.1010966]
[1764942039029,0.96495083,90638.0,90637.0,0.1010966]
[1764942039447,0.95495083,90638.0,90637.0,0.1010966]
[1764942039862,0.96295083,90638.0,90637.0,0.1010966]
[1764942040074,0.94543083,90638.0,90637.0,0.1010966]
[1764942040281,0.96295083,90638.0,90637.0,0.1010966]
[1764942040713,0.94543083,90638.0,90637.0,0.1010966]
[1764942040924,0.96295083,90638.0,90637.0,0.1010966]
[1764942041148,0.93743083,90638.0,90637.0,0.1010966]
[1764942041352,0.95495083,90638.0,90637.0,0.1010966]
[1764942041503,0.94743083,90638.0,90637.0,0.1010966]
[1764942041723,0.95495083,90638.0,90637.0,0.1010966]
[1764942042123,0.96495083,90638.0,90637.0,0.1010966]
[1764942042419,0.95495083,90638.0,90637.0,0.1010966]
[1764942042615,0.96495083,90638.0,90637.0,0.1010966]
[1764942043555,0.94743083,90638.0,90637.0,0.1010966]
[1764942043667,0.59030784,90638.0,90637.0,0.1010966]
[1764942043879,0.27840284,90638.0,90637.0,0.1010966]
[1764942044082,0.25498942,90638.0,90637.0,0.1010966]
[1764942044283,0.23746942,90638.0,90637.0,0.1010966]
[1764942044488,0.24498942,90638.0,90637.0,0.1010966]
[1764942044691,0.34666093,90638.0,90637.0,0.1010966]
[1764942044905,0.60140284,90638.0,90637.0,0.1010966]
[1764942045114,0.26568284,90638.0,90637.0,0.1010966]
[1764942045353,0.07552,90638.0,90637.0,0.1010966]
[1764942045576,0.058,90638.0,90637.0,0.1010966]
[1764942045781,0.058,90638.0,90637.0,0.10270947]
[1764942045982,0.07552,90638.0,90637.0,0.10270947]
[1764942046187,0.058,90638.0,90637.0,0.15697947]
[1764942046383,0.07552,90638.0,90637.0,0.15697947]
[1764942046661,0.07552,90638.0,90637.0,0.10270947]
[1764942046836,0.07552,90638.0,90637.0,0.3233699]
[1764942047035,0.06752,90638.0,90637.0,0.10270947]
[1764942047480,0.06852,90638.0,90637.0,0.10470947]
[1764942047682,0.06752,90638.0,90637.0,0.10270947]
[1764942048039,0.07052,90638.0,90637.0,0.10470947]
[1764942049212,0.07052,90638.0,90637.0,0.16273947]
[1764942049213,0.053,90638.0,90637.0,0.16273947]
[1764942049432,0.07052,90638.0,90637.0,0.16273947]
[1764942049665,0.07052,90638.0,90637.0,0.35363453]
[1764942049666,0.053,90638.0,90637.0,0.35363453]
[1764942049908,0.053,90638.0,90637.0,0.24392947]
[1764942050039,0.07052,90638.0,90637.0,0.16273947]
[1764942050238,0.07052,90638.0,90637.0,0.10470947]
[1764942050712,0.07052,90638.0,90637.0,0.16273947]
[1764942050874,0.053,90638.0,90637.0,0.24392947]
[1764942052499,0.053,90638.0,90637.0,0.10470947]
[1764942052703,0.07052,90638.0,90637.0,0.10470947]
[1764942053018,0.053,90638.0,90637.0,0.10470947]
[1764942053181,0.053,90638.0,90637.0,0.16273947]
[1764942053389,0.07052,90638.0,90637.0,0.27244453]
[1764942053588,0.07052,90638.0,90637.0,0.16273947]
[1764942053811,0.06752,90638.0,90637.0,0.16073947]
[1764942054100,0.06952,90638.0,90637.0,0.25092947]
[1764942054306,0.06752,90638.0,90637.0,0.24192947]
[1764942054508,0.05,90638.0,90637.0,0.24192947]
[1764942054706,0.06952,90638.0,90637.0,0.35263453]
[1764942055559,0.05,90638.0,90637.0,0.10270947]
[1764942055937,0.06952,90638.0,90637.0,0.11170947]
[1764942056963,0.06752,90638.0,90637.0,0.10270947]
[1764942057331,0.06952,90638.0,90637.0,0.11270947]
[1764942057552,0.06952,90638.0,90637.0,0.1110966]
[1764942057953,0.39252,90638.0,90637.0,0.1010966]
[1764942058182,0.41389683,90638.0,90637.0,0.1010966]
[1764942058378,0.44049683,90638.0,90637.0,0.1030966]
[1764942058779,0.40137683,90638.0,90637.0,0.1030966]
[1764942058984,0.39552,90638.0,90637.0,0.1030966]
[1764942059200,0.855991,90638.0,90637.0,0.1030966]
[1764942059378,0.902044,90638.0,90637.0,0.1030966]
[1764942060297,0.902044,90638.0,90637.0,0.1010966]
[1764942060298,0.93590399,90638.0,90637.0,0.1010966]
[1764942060497,0.90604383,90638.0,90637.0,0.1030966]
[1764942060911,0.89704383,90638.0,90637.0,0.1010966]
[1764942061117,0.90804383,90638.0,90637.0,0.1030966]
[1764942061516,0.89690913,90638.0,90637.0,0.1010966]
[1764942061740,0.94702913,90638.0,90637.0,0.1030966]
[1764942062149,0.57545613,90638.0,90637.0,0.1030966]
[1764942062354,0.61457613,90638.0,90637.0,0.1030966]
[1764942062554,0.59503483,90638.0,90637.0,0.1030966]
[1764942062957,0.57751483,90638.0,90637.0,0.1030966]
[1764942063119,0.56651483,90638.0,90637.0,0.1010966]
[1764942063315,0.58403483,90638.0,90637.0,0.1010966]
[1764942063522,0.57151483,90638.0,90637.0,0.1020966]
[1764942063758,0.58903483,90638.0,90637.0,0.1020966]
[1764942063964,0.57151483,90638.0,90637.0,0.1020966]
[1764942064115,0.58903483,90638.0,90637.0,0.1020966]
[1764942066264,0.48739184,90638.0,90637.0,0.1020966]
[1764942066444,0.55264701,90638.0,90637.0,0.1020966]
[1764942066648,0.57602384,90638.0,90637.0,0.1020966]
[1764942067056,0.55442384,90638.0,90637.0,0.1020966]
[1764942068496,0.63854683,90638.0,90637.0,0.1020966]
[1764942069535,0.62102683,90638.0,90637.0,0.1020966]
[1764942069751,0.95086156,90638.0,90637.0,0.1020966]
[1764942069967,0.87482772,90638.0,90637.0,0.1020966]
[1764942070205,0.95086131,90638.0,90637.0,0.1020966]
[1764942070449,0.88734772,90638.0,90637.0,0.1010966]
[1764942070665,0.89534772,90638.0,90637.0,0.1020966]
[1764942071405,0.89534772,90638.0,90637.0,0.1010966]
[1764942071406,0.88734772,90638.0,90637.0,0.1010966]
[1764942071608,0.88734772,90638.0,90637.0,0.04147841]
[1764942071806,0.88734772,90638.0,90637.0,0.00836722]
[1764942072417,2.62782482,90620.0,90619.0,0.11378264]
[1764942072633,2.67887466,90620.0,90619.0,0.11378264]
[1764942073636,2.68727402,90620.0,90619.0,0.11378264]
[1764942074058,2.67927402,90620.0,90619.0,0.11378264]
[1764942074265,2.68627402,90620.0,90619.0,0.11378264]
[1764942074726,2.68627402,90620.0,90612.0,0.00734985]
[1764942074728,2.75096915,90620.0,90612.0,0.00734985]
[1764942074869,2.75096915,90620.0,90596.0,0.03696]
[1764942074871,0.0216,90598.0,90596.0,0.03696]
[1764942075063,2.70935197,90598.0,90597.0,0.08182635]
[1764942075260,2.70939197,90598.0,90597.0,0.04870807]
[1764942075463,2.69183197,90598.0,90597.0,0.01558979]
[1764942075668,2.40712299,90597.0,90596.0,0.01941]
[1764942075854,2.6279174,90582.0,90555.0,0.0195]
[1764942076055,2.67900724,90582.0,90555.0,0.0195]
[1764942076344,2.67900724,90582.0,90580.0,0.06826021]
[1764942076345,2.0,90581.0,90580.0,0.06826021]
[1764942076543,2.47732387,90581.0,90580.0,0.03512042]
[1764942076745,2.45821283,90581.0,90580.0,0.00198063]
[1764942076920,2.45821283,90581.0,90576.0,0.06884084]
[1764942076921,2.62792959,90577.0,90576.0,0.06884084]
[1764942077154,2.66145943,90577.0,90576.0,0.03570105]
[1764942077332,2.63985943,90577.0,90576.0,0.00256126]
[1764942077575,2.63985943,90577.0,90555.0,0.0195]
[1764942077576,2.40712299,90576.0,90575.0,0.08552808]
[1764942077782,2.44065283,90576.0,90575.0,0.05238829]
[1764942077928,2.46974939,90576.0,90575.0,0.05238829]
[1764942078133,2.44065283,90576.0,90575.0,0.05238829]
[1764942078332,2.45821283,90576.0,90575.0,0.05422746]
[1764942079582,2.46821283,90576.0,90575.0,0.05422746]
[1764942079786,2.46814293,90576.0,90575.0,0.02108781]
[1764942079988,2.45058293,90576.0,90575.0,0.02108781]
[1764942080402,2.46814293,90576.0,90575.0,0.02108781]
[1764942080546,2.45058293,90576.0,90575.0,0.02108781]
[1764942080981,1.37599793,90576.0,90575.0,0.02108781]
[1764942081182,1.02134993,90576.0,90575.0,0.02108781]
[1764942081388,0.9979731,90576.0,90575.0,0.02108781]
[1764942081592,0.5470701,90576.0,90575.0,0.02108781]
[1764942081799,0.8876301,90576.0,90575.0,0.02108781]
[1764942082239,0.44899611,90576.0,90575.0,0.02108781]
[1764942082479,0.31310811,90576.0,90575.0,0.02108781]
[1764942082796,0.3831911,90576.0,90575.0,0.02108781]
[1764942082940,0.41058401,90576.0,90575.0,0.02108781]
[1764942083139,0.74158401,90576.0,90575.0,0.02108781]
[1764942083351,0.73358401,90576.0,90575.0,0.02108781]
[1764942083548,0.72402401,90576.0,90575.0,0.02108781]
[1764942083746,0.74158401,90576.0,90575.0,0.02108781]
[1764942084174,0.76479275,90576.0,90575.0,0.02108781]
[1764942084740,0.75679275,90576.0,90575.0,0.02108781]
[1764942085256,0.76479275,90576.0,90575.0,0.02208781]
[1764942085976,0.76479275,90576.0,90575.0,0.0113156]
[1764942086800,0.79383821,90576.0,90575.0,0.0113156]
[1764942087192,0.76483275,90576.0,90575.0,0.0113156]
[1764942087370,0.76483275,90576.0,90553.0,0.1172686]
[1764942087371,1.39121053,90568.0,90553.0,0.12831185]
[1764942087613,1.42450364,90568.0,90555.0,0.03054301]
[1764942087814,0.78552464,90568.0,90555.0,0.0195]
[1764942088038,1.13012464,90568.0,90555.0,0.0195]
[1764942088240,1.13573451,90568.0,90555.0,0.0195]
[1764942088444,1.15333451,90568.0,90555.0,0.0195]
[1764942088821,1.13573451,90568.0,90555.0,0.0195]
[1764942089043,1.15933451,90568.0,90567.0,0.0038]
[1764942089920,1.4206288,90556.0,90555.0,0.0195]
[1764942090123,1.44831191,90556.0,90555.0,0.0195]
[1764942090311,0.68161411,90556.0,90555.0,0.0195]
[1764942090719,0.64365411,90556.0,90555.0,0.0195]
[1764942090919,0.86451192,90556.0,90555.0,0.0195]
[1764942091118,0.59287311,90556.0,90555.0,0.0195]
[1764942091360,0.248056,90555.0,90554.0,0.22086135]
[1764942091581,0.01008311,90555.0,90554.0,0.09956897]
[1764942091791,0.0176,90555.0,90554.0,0.15775897]
[1764942091996,0.01104093,90572.0,90567.0,0.22082861]
[1764942092188,0.01104142,90568.0,90564.0,0.01104191]
[1764942092407,0.492878,90566.0,90564.0,0.2208383]
[1764942092593,0.01104203,90563.0,90554.0,0.00161287]
[1764942092743,0.23189368,90559.0,90556.0,0.01104289]
[1764942092966,0.0100748,90558.0,90556.0,0.23351262]
[1764942093165,0.22083539,90566.0,90556.0,0.23351262]
[1764942093166,0.0100748,90560.0,90559.0,0.22085049]
[1764942093396,0.0276748,90560.0,90559.0,0.22246336]
[1764942093600,0.0100748,90560.0,90557.0,0.23189813]
[1764942093770,0.0100748,90560.0,90553.0,0.1167686]
[1764942093771,0.99112,90554.0,90553.0,0.1167686]
[1764942093971,0.8974888,90554.0,90553.0,0.1167686]
[1764942095216,0.90328171,90554.0,90553.0,0.1167686]
[1764942095399,0.94248171,90554.0,90553.0,0.1167686]
[1764942095854,0.94548171,90554.0,90553.0,0.1167686]
[1764942096519,0.81999871,90554.0,90553.0,0.1167686]
[1764942096715,0.83759871,90554.0,90553.0,0.1167686]
[1764942096917,0.86084808,90554.0,90553.0,0.1167686]
[1764942097173,0.92337107,90554.0,90553.0,0.1167686]
[1764942097339,0.92337107,90554.0,90553.0,0.10599538]
[1764942097539,0.92337107,90554.0,90546.0,0.1]
[1764942097540,0.62800275,90547.0,90546.0,0.1]
[1764942097758,2.65732692,90547.0,90546.0,0.1]
[1764942097937,2.63972692,90547.0,90546.0,0.1]
[1764942098134,2.67892692,90547.0,90546.0,0.1]
[1764942098372,1.07087892,90547.0,90546.0,0.1]
[1764942098574,1.12156519,90547.0,90546.0,0.1]
[1764942098790,1.09287779,90547.0,90546.0,0.1]
[1764942099209,1.05367779,90547.0,90546.0,0.1]
[1764942099570,1.09287779,90547.0,90546.0,0.1]
[1764942100421,1.10487779,90547.0,90546.0,0.1]
[1764942101037,1.1261094,90547.0,90546.0,0.1]
[1764942101245,1.08727779,90547.0,90546.0,0.1]
[1764942101461,1.07527779,90547.0,90546.0,0.1]
[1764942101662,1.0303548,90547.0,90546.0,0.1]
[1764942101810,0.5848448,90547.0,90546.0,0.1]
[1764942102024,0.9078448,90547.0,90546.0,0.1]
[1764942102223,0.8998448,90547.0,90546.0,0.1]
[1764942102381,0.5878448,90547.0,90546.0,0.1]
[1764942102820,0.94970959,90547.0,90546.0,0.1]
[1764942103027,0.97336779,90547.0,90546.0,0.1]
[1764942103241,0.96236779,90547.0,90546.0,0.1]
[1764942103454,0.96936779,90547.0,90546.0,0.04032597]
[1764942103870,0.94776779,90547.0,90546.0,0.04032597]
[1764942104073,0.96936779,90547.0,90546.0,0.04032597]
[1764942104295,0.96936779,90547.0,90546.0,0.0411868]
[1764942104697,0.22088952,90543.0,90542.0,0.001104]
[1764942104906,1.8366118,90531.0,90530.0,0.11284104]
[1764942105159,1.64678397,90531.0,90530.0,0.11284104]
[1764942105334,1.42401197,90531.0,90530.0,0.11284104]
[1764942105540,1.10838497,90531.0,90530.0,0.11284104]
[1764942106060,1.14735501,90531.0,90530.0,0.11284104]
[1764942106289,1.11638497,90531.0,90530.0,0.11284104]
[1764942106438,1.10838497,90531.0,90530.0,0.11284104]
[1764942106819,1.12974759,90531.0,90530.0,0.11284104]
[1764942107080,1.06918497,90531.0,90530.0,0.11284104]
[1764942107376,1.14734068,90531.0,90530.0,0.10206593]
[1764942107630,1.22933667,90531.0,90530.0,0.10206593]
[1764942107822,1.22933667,90531.0,90530.0,0.08410598]
[1764942107823,1.17090796,90531.0,90530.0,0.08410598]
[1764942108032,1.13970796,90531.0,90530.0,0.08410598]
[1764942108233,0.77172183,90531.0,90530.0,0.08410598]
[1764942108387,0.83696097,90531.0,90530.0,0.08410598]
[1764942108611,0.88416097,90531.0,90530.0,0.08410598]
[1764942108773,0.58827517,90531.0,90530.0,0.08410598]
[1764942108980,0.46947017,90531.0,90530.0,0.08410598]
[1764942109186,0.54959316,90531.0,90530.0,0.08410598]
[1764942109426,0.57119316,90531.0,90530.0,0.08410598]
[1764942109675,0.57119316,90531.0,90530.0,0.06973844]
[1764942110066,0.55359316,90531.0,90530.0,0.06973844]
[1764942110289,0.57119316,90531.0,90530.0,0.06973844]
[1764942110493,0.54959316,90531.0,90530.0,0.06973844]
[1764942110641,0.62119316,90531.0,90530.0,0.06973844]
[1764942110850,0.60359316,90531.0,90530.0,0.06973844]
[1764942111067,0.62119316,90531.0,90530.0,0.06973844]
[1764942111267,0.62119316,90531.0,90530.0,0.03658406]
[1764942111485,0.60359316,90531.0,90530.0,0.01143545]
[1764942111685,0.59959316,90531.0,90530.0,0.01143545]
[1764942111884,0.61319316,90531.0,90530.0,0.01143545]
[1764942112080,0.62519316,90531.0,90530.0,0.01143545]
[1764942113357,2.38552299,90517.0,90516.0,0.1]
[1764942113567,2.45804716,90517.0,90516.0,0.1]
[1764942113771,2.43644716,90517.0,90516.0,0.1]
[1764942113961,2.45804716,90517.0,90516.0,0.1]
[1764942114158,1.25261417,90517.0,90516.0,0.1]
[1764942114356,1.31309482,90517.0,90516.0,0.1]
[1764942114590,1.31349344,90517.0,90516.0,0.1]
[1764942114808,1.34513578,90517.0,90516.0,0.1]
[1764942114993,1.34513578,90517.0,90516.0,0.0999]
[1764942115417,1.35492869,90517.0,90516.0,0.0999]
[1764942115640,1.37252869,90517.0,90516.0,0.0999]
[1764942115851,1.35492869,90517.0,90516.0,0.0999]
[1764942116049,1.37252869,90517.0,90516.0,0.0999]
[1764942116329,1.41139718,90517.0,90516.0,0.0999]
[1764942117079,1.2924057,90517.0,90516.0,0.0999]
[1764942117280,0.39369932,90517.0,90516.0,0.10151287]
[1764942117453,0.71669932,90517.0,90516.0,0.10151287]
[1764942117665,0.70514879,90517.0,90516.0,0.10151287]
[1764942117882,0.68754879,90517.0,90516.0,0.10151287]
[1764942118093,0.70514879,90517.0,90516.0,0.10151287]
[1764942118297,0.72674879,90517.0,90516.0,0.0999]
[1764942118494,0.70914879,90517.0,90516.0,0.0999]
[1764942118716,0.68754879,90517.0,90516.0,0.10151287]
[1764942118917,0.40374879,90517.0,90516.0,0.10151287]
[1764942119120,0.58385239,90517.0,90516.0,0.10151287]
[1764942119284,0.62470176,90517.0,90516.0,0.10151287]
[1764942119497,0.20454879,90517.0,90516.0,0.10151287]
[1764942119694,0.54764542,90517.0,90516.0,0.10151287]
[1764942119862,0.58849479,90517.0,90516.0,0.10151287]
[1764942120057,0.58049479,90517.0,90516.0,0.10151287]
[1764942120328,0.60809479,90517.0,90516.0,0.10151287]
[1764942120738,0.58649479,90517.0,90516.0,0.10240382]
[1764942120912,1.39837576,90517.0,90516.0,0.10079095]
[1764942121454,1.35056176,90517.0,90516.0,0.10079095]
[1764942121661,1.35056176,90517.0,90516.0,0.10029095]
[1764942121854,0.85985676,90517.0,90516.0,0.10029095]
[1764942122033,0.87745676,90517.0,90516.0,0.10029095]
[1764942122232,0.88902174,90517.0,90516.0,0.10029095]
[1764942122435,0.60177877,90517.0,90516.0,0.10190382]
[1764942122977,0.57817877,90517.0,90516.0,0.10190382]
[1764942123203,0.08372279,90517.0,90516.0,0.25014382]
[1764942123406,0.06047342,90517.0,90516.0,0.25014382]
[1764942123627,0.07807342,90517.0,90516.0,0.25014382]
[1764942123838,0.08707342,90517.0,90516.0,0.25014382]
[1764942124084,0.06047342,90517.0,90516.0,0.25014382]
[1764942124295,0.06047342,90517.0,90516.0,0.35019422]
[1764942124501,0.06747342,90517.0,90516.0,0.35019422]
[1764942125127,0.06747342,90517.0,90516.0,0.37169819]
[1764942125911,0.06747342,90517.0,90516.0,0.35019422]
[1764942126116,0.06047342,90517.0,90516.0,0.35019422]
[1764942126336,0.06047342,90517.0,90516.0,0.35219422]
[1764942126545,0.06247342,90517.0,90516.0,0.35219422]
[1764942126723,0.06047342,90517.0,90516.0,0.35019422]
[1764942127087,0.06347342,90517.0,90516.0,0.35219422]
[1764942127210,0.06047342,90517.0,90516.0,0.35019422]
[1764942127403,0.06047342,90517.0,90516.0,0.10190382]
[1764942127673,0.42467342,90517.0,90516.0,0.20390382]
[1764942127851,0.58310542,90517.0,90516.0,0.20390382]
[1764942128021,0.56563279,90517.0,90516.0,0.20390382]
[1764942128248,0.40872279,90517.0,90516.0,0.20390382]
[1764942128449,0.40307342,90517.0,90516.0,0.20390382]
[1764942128946,0.40107342,90517.0,90516.0,0.20190382]
[1764942129331,0.92084542,90517.0,90516.0,0.20290382]
[1764942129533,0.94409479,90517.0,90516.0,0.20290382]
[1764942129721,0.94409479,90517.0,90516.0,0.20029095]
[1764942129722,1.04738276,90517.0,90516.0,0.20029095]
[1764942129918,1.02421778,90517.0,90516.0,0.20129095]
[1764942130323,1.01821778,90517.0,90516.0,0.20029095]
[1764942130578,1.01821778,90517.0,90516.0,0.17866095]
[1764942130781,0.88636479,90517.0,90516.0,0.17966095]
[1764942130987,0.88636479,90517.0,90516.0,0.17866095]
[1764942130988,0.57542236,90517.0,90516.0,0.17866095]
[1764942131129,0.54352279,90517.0,90516.0,0.17866095]
[1764942131334,0.51584799,90517.0,90516.0,0.18027382]
[1764942131664,0.52033987,90517.0,90516.0,0.24276382]
[1764942131986,0.40113987,90517.0,90516.0,0.18027382]
[1764942132131,0.38353987,90517.0,90516.0,0.18127382]
[1764942132339,0.07053987,90517.0,90516.0,0.42338357]
[1764942132539,0.06053987,90517.0,90516.0,0.4216768]
[1764942132938,0.06053987,90517.0,90516.0,0.4226768]
[1764942132986,0.07053987,90517.0,90516.0,0.4226768]
[1764942133163,0.06053987,90517.0,90516.0,0.3359268]
[1764942133349,0.05039862,90517.0,90516.0,0.3359268]
[1764942133549,0.05039862,90517.0,90516.0,0.2734368]
[1764942133784,0.06054109,90517.0,90516.0,0.18027382]
[1764942134012,0.18200609,90517.0,90516.0,0.18127382]
[1764942134215,0.58912908,90517.0,90516.0,0.17966095]
[1764942134440,0.61249559,90517.0,90516.0,0.17966095]
[1764942134657,0.61249559,90517.0,90516.0,0.17466095]
[1764942134865,0.63009559,90517.0,90516.0,0.17466095]
[1764942135070,0.66296116,90517.0,90516.0,0.17366095]
[1764942135305,0.64536116,90517.0,90516.0,0.17366095]
[1764942135525,0.62909559,90517.0,90516.0,0.17466095]
[1764942135749,0.62909559,90517.0,90516.0,0.17366095]
[1764942135750,0.66296116,90517.0,90516.0,0.17366095]
[1764942135950,0.62409559,90517.0,90516.0,0.17366095]
[1764942136150,0.63409559,90517.0,90516.0,0.17466095]
[1764942136619,0.67296116,90517.0,90516.0,0.17466095]
[1764942137632,0.63409559,90517.0,90516.0,0.17466095]
[1764942138491,0.62409559,90517.0,90516.0,0.17366095]
[1764942138708,0.63809559,90517.0,90516.0,0.17466095]
[1764942139155,0.70885075,90517.0,90516.0,0.08080378]
[1764942139363,0.70885075,90517.0,90516.0,0.01448712]
[1764942139591,0.72385075,90517.0,90516.0,0.01048712]
[1764942139786,0.72385075,90517.0,90510.0,4.115e-05]
[1764942139787,2.6280906,90511.0,90510.0,4.115e-05]
[1764942140016,0.62811013,90503.0,90502.0,0.01]
[1764942140217,2.67921911,90503.0,90502.0,0.01]
[1764942140388,2.67921911,90503.0,90502.0,0.01041591]
[1764942140597,2.74584484,90503.0,90502.0,0.01041591]
[1764942140805,2.62811502,90501.0,90500.0,12.01067271]
[1764942141004,2.661624,90501.0,90500.0,11.97750136]
[1764942141366,2.661624,90501.0,90500.0,11.91115866]
[1764942141538,2.661624,90501.0,90500.0,11.87798731]
[1764942141743,2.661624,90501.0,90500.0,11.83981596]
[1764942141895,2.661624,90501.0,90500.0,11.80664461]
[1764942141896,2.679224,90501.0,90500.0,11.80664461]
[1764942142107,2.679224,90501.0,90500.0,11.77347326]
[1764942142108,2.661624,90501.0,90500.0,11.77347326]
[1764942142316,2.661624,90501.0,90500.0,11.74030191]
[1764942142317,2.694224,90501.0,90500.0,11.74030191]
[1764942142691,2.676624,90501.0,90500.0,11.67395921]
[1764942142838,2.676624,90501.0,90500.0,11.64078786]
[1764942142839,2.679224,90501.0,90500.0,11.64078786]
[1764942143121,2.697224,90501.0,90500.0,11.60261651]
[1764942143288,2.679224,90501.0,90500.0,11.56944516]
[1764942143491,2.679224,90501.0,90500.0,11.53627381]
[1764942143691,2.696224,90501.0,90500.0,8.91843546]
[1764942143892,2.696224,90501.0,90500.0,8.88526411]
[1764942144075,2.696224,90501.0,90500.0,8.85208654]
[1764942144275,2.696224,90501.0,90500.0,5.29982109]
[1764942144276,2.69617879,90501.0,90500.0,5.29982109]